fUSD/lending_fUSD_20250513
["ID","MTS","AMOUNT","RATE_DAILY","PERIOD"]
[360897546,1747127670300,150.0,0.00011765,2]
[360897547,1747127670341,150.0,0.00011832,2]
[360897548,1747127670568,150.0,0.00011842,2]
[360897549,1747127670848,150.0,0.00011731,2]
[360897550,1747127670890,150.0,0.00011811,2]
[360897551,1747127670945,150.0,0.00011785,2]
[360897552,1747127671131,150.0,0.00011779,2]
[360897553,1747127671183,150.0,0.00011787,2]
[360897554,1747127671236,150.0,0.00011826,2]
[360897555,1747127671311,150.0,0.00011759,2]
[360897556,1747127671648,150.0,0.00011843,2]
[360897557,1747127671739,150.0,0.00011796,2]
[360897558,1747127671773,150.0,0.00011834,2]
[360897559,1747127674500,150.0,0.00011717,2]
[360897560,1747127730258,150.0,0.00011739,2]
[360897561,1747127730312,150.0,0.00011827,2]
[360897562,1747127730369,150.0,0.0001172,2]
[360897563,1747127730419,150.0,0.00011715,2]
[360897564,1747127730460,150.0,0.0001178,2]
[360897565,1747127730510,150.0,0.00011794,2]
[360897566,1747127730560,150.0,0.00011736,2]
[360897567,1747127730644,150.0,0.00011768,2]
[360897568,1747127730677,150.0,0.00011717,2]
[360897569,1747127730714,150.0,0.00011774,2]
[360897570,1747127730746,150.0,0.00011727,2]
[360897571,1747127730793,150.0,0.00011769,2]
[360897572,1747127730833,150.0,0.00011811,2]
[360897573,1747127730878,150.0,0.00011765,2]
[360897574,1747127730932,150.0,0.00011812,2]
[360897575,1747127730967,150.0,0.00011777,2]
[360897576,1747127731006,150.0,0.00011769,2]
[360897577,1747127731042,150.0,0.00011849,2]
[360897578,1747127731076,150.0,0.0001181,2]
[360897579,1747127731137,150.0,0.00011792,2]
[360897580,1747127731210,150.0,0.00011785,2]
[360897581,1747127731386,150.0,0.00011738,2]
[360897582,1747127731448,150.0,0.00011832,2]
[360897583,1747127731565,150.0,0.00011765,2]
[360897584,1747127731609,150.0,0.00011815,2]
[360897585,1747127758456,150.0,0.00011747,2]
[360897586,1747127795544,150.0,0.00011719,2]
[360897587,1747127795593,152.7491343,0.00011848,2]
[360897588,1747127850688,150.0,0.00011835,2]
[360897589,1747127850747,150.0,0.0001176,2]
[360897590,1747127855709,934.87947836,0.00011751,2]
[360897591,1747127878707,150.0,0.00011814,2]
[360897592,1747127915385,231.93343165,0.00011766,2]
[360897604,1747127970118,150.0,0.00011776,2]
[360897605,1747127970166,150.0,0.00011755,2]
[360897606,1747127970226,150.0,0.00011759,2]
[360897607,1747127970271,150.0,0.00011743,2]
[360897608,1747127970311,150.0,0.00011796,2]
[360897609,1747127970354,150.0,0.00011844,2]
[360897610,1747127970403,150.0,0.00011834,2]
[360897611,1747127970705,150.0,0.00011778,2]
[360897612,1747127976526,1000.0,0.00011716,2]
[360897613,1747127992956,336.36,9.014e-05,2]
[360897614,1747127993494,336.36,0.00011278,2]
[360897617,1747128069005,4723.94184937,0.0001,2]
[360897619,1747128091538,165.68,0.00010931,2]
[360897620,1747128154523,1192.53,0.00010933,2]
[360897621,1747128195134,1000.0,0.00010932,2]
[360897622,1747128216078,150.0,0.0001184,2]
[360897623,1747128230621,235.03,0.00010931,2]
[360897624,1747128255832,250.0,0.00011728,2]
[360897625,1747128275611,1000.0,0.00011733,2]
[360897626,1747128275666,1000.0,0.00011782,2]
[360897627,1747128275717,1000.0,0.00011831,2]
[360897628,1747128330443,150.0,0.00011768,2]
[360897629,1747128330484,150.0,0.0001176,2]
[360897630,1747128330523,150.0,0.00011734,2]
[360897631,1747128330575,150.0,0.00011754,2]
[360897632,1747128330619,150.0,0.0001185,2]
[360897633,1747128330657,150.0,0.00011808,2]
[360897634,1747128330778,150.0,0.00011835,2]
[360897635,1747128331403,150.0,0.00011776,2]
[360897636,1747128331469,150.0,0.00011754,2]
[360897637,1747128333421,23900.0,0.0001093,2]
[360897638,1747128358577,-172.32280711,0.00011852,2]
[360897639,1747128384516,7277.6394949,0.0001184,2]
[360897641,1747128390304,150.0,0.00011798,2]
[360897642,1747128390535,150.0,0.00011836,2]
[360897643,1747128390867,150.0,0.00011776,2]
[360897644,1747128391157,150.0,0.00011809,2]
[360897645,1747128391218,150.0,0.00011817,2]
[360897646,1747128395561,1000.0,0.00011773,2]
[360897647,1747128395595,150.0,0.00011838,2]
[360897650,1747128405261,140965.15933737,0.0001184,2]
[360897651,1747128418673,150.0,0.00011793,2]
[360897673,1747128510784,150.0,0.00011838,2]
[360897674,1747128510842,150.0,0.00011812,2]
[360897691,1747128630091,150.0,0.00011823,2]
[360897701,1747128632065,-305.9386501,0.00011851,2]
[360897702,1747128632075,-250.0,0.00011851,2]
[360897703,1747128632084,-200.0,0.00011852,2]
[360897704,1747128632094,-200.0,0.00011852,2]
[360897705,1747128632103,-150.0,0.00011858,2]
[360897706,1747128632112,-150.0,0.0001186,2]
[360897707,1747128632122,-150.0,0.0001186,2]
[360897708,1747128632132,-150.0,0.00011861,2]
[360897709,1747128632142,-207.4,0.00011868,2]
[360897710,1747128632151,-150.0,0.00011868,2]
[360897711,1747128632160,-150.0,0.00011873,2]
[360897712,1747128632170,-668.65185757,0.0001188,2]
[360897713,1747128632179,-150.0,0.00011883,2]
[360897714,1747128632189,-150.0,0.00011883,2]
[360897715,1747128632198,-1200.0,0.00011884,2]
[360897716,1747128632207,-182.86321509,0.00011885,2]
[360897717,1747128632217,-11793.1841,0.00011886,2]
[360897718,1747128632226,-295.82050711,0.00011887,2]
[360897719,1747128632235,-458.5138,0.00011887,2]
[360897720,1747128632245,-150.0,0.00011888,2]
[360897721,1747128632254,-774.65691371,0.00011889,2]
[360897722,1747128632263,-1025.70736966,0.00011889,2]
[360897723,1747128632272,-496.07277127,0.00011889,2]
[360897724,1747128632281,-230.3431,0.0001189,2]
[360897725,1747128632291,-452.6382,0.0001189,2]
[360897726,1747128632300,-150.0,0.00011896,2]
[360897727,1747128632311,-248.69246555,0.000119,2]
[360897728,1747128632320,-163.64279301,0.000119,2]
[360897729,1747128632330,-150.0,0.00011901,2]
[360897730,1747128632339,-200.0,0.00011902,2]
[360897731,1747128632349,-150.0,0.00011911,2]
[360897732,1747128632358,-150.0,0.00011911,2]
[360897733,1747128632368,-194.22278869,0.00011922,2]
[360897734,1747128632377,-150.0,0.00011925,2]
[360897735,1747128632387,-249.3923467,0.00011939,2]
[360897736,1747128632397,-150.0,0.0001194,2]
[360897737,1747128632406,-150.0,0.0001194,2]
[360897739,1747128632416,-150.7801954,0.00011948,2]
[360897741,1747128632426,-150.0,0.0001195,2]
[360897743,1747128632436,-150.0,0.00011953,2]
[360897745,1747128632445,-150.0,0.00011954,2]
[360897747,1747128632455,-150.0,0.00011956,2]
[360897749,1747128632464,-150.0,0.0001197,2]
[360897751,1747128632473,-150.0,0.0001197,2]
[360897753,1747128632482,-158.77,0.00011976,2]
[360897755,1747128632492,-150.0,0.00011977,2]
[360897757,1747128632500,-150.0,0.00011984,2]
[360897759,1747128632510,-400.0,0.00011985,2]
[360897761,1747128632520,-400.0,0.00011985,2]
[360897763,1747128632529,-400.0,0.00011985,2]
[360897765,1747128632538,-163.3379464,0.00011985,2]
[360897767,1747128632548,-400.0,0.00011985,2]
[360897769,1747128632557,-400.89076759,0.00011985,2]
[360897771,1747128632567,-403.11696858,0.00011985,2]
[360897773,1747128632576,-400.0,0.00011985,2]
[360897775,1747128632585,-401.19380171,0.00011985,2]
[360897777,1747128632594,-402.43790363,0.00011985,2]
[360897779,1747128632603,-400.0,0.00011985,2]
[360897781,1747128632613,-250.58147513,0.00011985,2]
[360897783,1747128632622,-400.0,0.00011985,2]
[360897785,1747128632631,-400.89591025,0.00011985,2]
[360897787,1747128632640,-400.0,0.00011985,2]
[360897789,1747128632649,-517.68825216,0.00011985,2]
[360897791,1747128632658,-400.0,0.00011985,2]
[360897793,1747128632668,-402.28426472,0.00011985,2]
[360897795,1747128632677,-401.32636114,0.00011985,2]
[360897797,1747128632689,-921.377391,0.00011985,2]
[360897799,1747128632698,-501.32789686,0.00011985,2]
[360897801,1747128632707,-457.31,0.00011985,2]
[360897803,1747128632717,-400.0,0.00011985,2]
[360897805,1747128632726,-940.38,0.00011985,2]
[360897807,1747128632735,-400.0,0.00011985,2]
[360897809,1747128632744,-811.79,0.00011985,2]
[360897811,1747128632753,-523.12484764,0.00011985,2]
[360897813,1747128632761,-471.71282696,0.00011985,2]
[360897815,1747128632770,-535.57,0.00011985,2]
[360897817,1747128632779,-170.520578,0.00011985,2]
[360897818,1747128632788,-157.571043,0.00011985,2]
[360897820,1747128632797,-400.0,0.00011985,2]
[360897822,1747128632806,-3877.79323,0.00011985,2]
[360897824,1747128632816,-490.576078,0.00011985,2]
[360897826,1747128632825,-403.17683018,0.00011985,2]
[360897828,1747128632835,-626.28,0.00011985,2]
[360897830,1747128632844,-400.0,0.00011985,2]
[360897832,1747128632853,-3023.97,0.00011985,2]
[360897834,1747128632862,-400.0,0.00011985,2]
[360897836,1747128632871,-400.0,0.00011985,2]
[360897838,1747128632882,-400.0,0.00011985,2]
[360897840,1747128632891,-400.0,0.00011985,2]
[360897842,1747128632901,-503.56437261,0.00011985,2]
[360897844,1747128632910,-400.0,0.00011985,2]
[360897846,1747128632919,-602.22,0.00011985,2]
[360897848,1747128632929,-400.0,0.00011985,2]
[360897850,1747128632939,-400.0,0.00011985,2]
[360897852,1747128632948,-400.0,0.00011985,2]
[360897853,1747128632958,-442.94,0.00011985,2]
[360897855,1747128632966,-400.0,0.00011985,2]
[360897857,1747128632976,-400.0,0.00011985,2]
[360897859,1747128632985,-400.0,0.00011985,2]
[360897861,1747128632994,-400.0,0.00011985,2]
[360897863,1747128633004,-528.27,0.00011985,2]
[360897864,1747128633013,-400.0,0.00011985,2]
[360897865,1747128633023,-400.0,0.00011985,2]
[360897866,1747128633032,-400.0,0.00011985,2]
[360897867,1747128633042,-1921.26,0.00011985,2]
[360897868,1747128633052,-401.97789605,0.00011985,2]
[360897869,1747128633061,-400.0,0.00011985,2]
[360897870,1747128633071,-150.0,0.00011985,2]
[360897871,1747128633081,-400.0,0.00011985,2]
[360897872,1747128633091,-400.0,0.00011985,2]
[360897873,1747128633100,-400.0,0.00011985,2]
[360897874,1747128633110,-400.0,0.00011985,2]
[360897875,1747128633119,-400.0,0.00011985,2]
[360897876,1747128633129,-400.0,0.00011985,2]
[360897877,1747128633139,-400.0,0.00011985,2]
[360897878,1747128633148,-400.0,0.00011985,2]
[360897879,1747128633158,-400.0,0.00011985,2]
[360897880,1747128633167,-400.0,0.00011985,2]
[360897881,1747128633176,-780.95,0.00011985,2]
[360897882,1747128633186,-753.43,0.00011985,2]
[360897883,1747128633196,-934.73,0.00011985,2]
[360897884,1747128633205,-400.0,0.00011985,2]
[360897885,1747128633215,-1509.02,0.00011985,2]
[360897886,1747128633224,-353.63552362,0.00011985,2]
[360897887,1747128633368,-400.0,0.00011985,2]
[360897888,1747128633408,-432.93,0.00011985,2]
[360897889,1747128633419,-845.67,0.00011985,2]
[360897890,1747128633429,-400.0,0.00011985,2]
[360897891,1747128633439,-400.0,0.00011985,2]
[360897892,1747128633448,-515.33,0.00011985,2]
[360897893,1747128633458,-1478.4,0.00011985,2]
[360897894,1747128633467,-400.0,0.00011985,2]
[360897895,1747128633476,-400.0,0.00011985,2]
[360897896,1747128633486,-160.22311583,0.00011985,2]
[360897897,1747128633495,-400.0,0.00011985,2]
[360897898,1747128633505,-1155.67,0.00011985,2]
[360897899,1747128633514,-400.0,0.00011985,2]
[360897900,1747128633524,-400.0,0.00011985,2]
[360897901,1747128633534,-506.83219455,0.00011985,2]
[360897902,1747128633544,-400.0,0.00011985,2]
[360897903,1747128633554,-400.0,0.00011985,2]
[360897904,1747128633563,-1156.84,0.00011985,2]
[360897905,1747128633573,-400.0,0.00011985,2]
[360897906,1747128633583,-499.26724543,0.00011985,2]
[360897907,1747128633593,-400.0,0.00011985,2]
[360897908,1747128633602,-400.0,0.00011985,2]
[360897909,1747128633611,-626.43,0.00011985,2]
[360897910,1747128633621,-400.0,0.00011985,2]
[360897911,1747128633630,-513.7381443,0.00011985,2]
[360897912,1747128633640,-400.0,0.00011985,2]
[360897913,1747128633649,-400.0,0.00011985,2]
[360897914,1747128633659,-400.0,0.00011985,2]
[360897915,1747128633668,-576.18,0.00011985,2]
[360897916,1747128633678,-400.0,0.00011985,2]
[360897917,1747128633691,-3729.44,0.00011985,2]
[360897918,1747128633701,-400.0,0.00011985,2]
[360897919,1747128633711,-1510.13,0.00011985,2]
[360897920,1747128633720,-467.12276674,0.00011985,2]
[360897921,1747128633730,-400.0,0.00011985,2]
[360897922,1747128633740,-400.0,0.00011985,2]
[360897923,1747128633749,-473.83221493,0.00011985,2]
[360897924,1747128633760,-400.0,0.00011985,2]
[360897925,1747128633769,-408.30430279,0.00011985,2]
[360897926,1747128633779,-400.0,0.00011985,2]
[360897927,1747128633788,-400.0,0.00011985,2]
[360897928,1747128633798,-400.0,0.00011985,2]
[360897929,1747128633807,-1007.38,0.00011985,2]
[360897930,1747128633816,-400.0,0.00011985,2]
[360897931,1747128633825,-400.0,0.00011985,2]
[360897932,1747128633835,-511.56237354,0.00011985,2]
[360897933,1747128633844,-506.29,0.00011985,2]
[360897934,1747128633853,-400.0,0.00011985,2]
[360897935,1747128633862,-400.0,0.00011985,2]
[360897936,1747128633871,-300.52788133,0.00011985,2]
[360897937,1747128633880,-400.0,0.00011985,2]
[360897938,1747128633890,-373.51440292,0.00011986,2]
[360897939,1747128633899,-400.0,0.00011986,2]
[360897940,1747128633908,-400.0,0.00011986,2]
[360897941,1747128633917,-400.0,0.00011986,2]
[360897942,1747128633929,-400.0,0.00011986,2]
[360897943,1747128633941,-204.10799356,0.00011986,2]
[360897944,1747128633951,-400.0,0.00011986,2]
[360897945,1747128633961,-400.0,0.00011986,2]
[360897946,1747128633975,-212.83537644,0.00011986,2]
[360897947,1747128633984,-400.0,0.00011986,2]
[360897948,1747128633994,-400.0,0.00011986,2]
[360897949,1747128634003,-200.0,0.00011986,2]
[360897950,1747128634013,-200.0,0.00011986,2]
[360897951,1747128634022,-401.9415827,0.00011986,2]
[360897952,1747128634032,-401.78383221,0.00011986,2]
[360897953,1747128634041,-400.0,0.00011986,2]
[360897954,1747128634051,-502.99141604,0.00011986,2]
[360897955,1747128634060,-400.0,0.00011986,2]
[360897956,1747128634070,-405.27450894,0.00011986,2]
[360897957,1747128634079,-400.0,0.00011986,2]
[360897958,1747128634088,-402.38336745,0.00011986,2]
[360897959,1747128634098,-401.10169997,0.00011986,2]
[360897960,1747128634107,-400.0,0.00011986,2]
[360897961,1747128634116,-400.0,0.00011986,2]
[360897962,1747128634125,-400.0,0.00011986,2]
[360897963,1747128634135,-45.56941529,0.00011986,2]
[360897964,1747128634177,-354.43058471,0.00011986,2]
[360897965,1747128634186,-195.80427865,0.00011986,2]
[360897966,1747128634197,-604.19,0.00011986,2]
[360897967,1747128634206,-400.0,0.00011986,2]
[360897968,1747128634216,-400.0,0.00011986,2]
[360897969,1747128634225,-400.0,0.00011986,2]
[360897970,1747128634234,-400.0,0.00011986,2]
[360897971,1747128634243,-400.0,0.00011986,2]
[360897972,1747128634252,-400.0,0.00011986,2]
[360897973,1747128634261,-665.36,0.00011986,2]
[360897974,1747128634271,-477.73,0.00011986,2]
[360897975,1747128634280,-400.0,0.00011986,2]
[360897976,1747128634290,-91.08513654,0.00011986,2]
[360897977,1747128634302,-308.91486346,0.00011986,2]
[360897978,1747128634311,-391.14997491,0.00011986,2]
[360897979,1747128634320,-457.43,0.00011986,2]
[360897980,1747128634329,-30.84446213,0.00011986,2]
[360897981,1747128634340,-484.12553787,0.00011986,2]
[360897982,1747128634350,-310.80703512,0.00011986,2]
[360897983,1747128634361,-89.19296488,0.00011986,2]
[360897984,1747128634371,-744.91662243,0.00011986,2]
[360897985,1747128634494,-1079.1059,0.00011986,2]
[360897986,1747128634506,-5305.40747757,0.00011986,2]
[360897987,1747128634516,-400.0,0.00011986,2]
[360897988,1747128634525,-400.0,0.00011986,2]
[360897989,1747128634536,-400.0,0.00011986,2]
[360897990,1747128634546,-347.63460945,0.00011986,2]
[360897991,1747128634558,-52.36539055,0.00011986,2]
[360897992,1747128634568,-421.82,0.00011986,2]
[360897993,1747128634577,-40.81460945,0.00011986,2]
[360897994,1747128634589,-413.22539055,0.00011986,2]
[360897995,1747128634598,-291.13617466,0.00011986,2]
[360897996,1747128634616,-108.86382534,0.00011986,2]
[360897997,1747128634626,-347.3682453,0.00011986,2]
[360897998,1747128634635,-400.0,0.00011986,2]
[360897999,1747128634645,-400.0,0.00011986,2]
[360898000,1747128634654,-326.01463505,0.00011986,2]
[360898001,1747128634664,-326.83702349,0.00011986,2]
[360898002,1747128634674,-188.73955999,0.00011986,2]
[360898003,1747128634684,-400.0,0.00011986,2]
[360898004,1747128634696,-400.0,0.00011986,2]
[360898005,1747128634707,-400.0,0.00011986,2]
[360898006,1747128634716,-409.68,0.00011986,2]
[360898007,1747128634725,-400.0,0.00011986,2]
[360898008,1747128634735,-400.0,0.00011986,2]
[360898009,1747128634745,-400.0,0.00011986,2]
[360898010,1747128634755,-400.0,0.00011986,2]
[360898011,1747128634764,-623.83,0.00011986,2]
[360898012,1747128634774,-400.0,0.00011986,2]
[360898013,1747128634783,-400.0,0.00011986,2]
[360898014,1747128634793,-416.22,0.00011986,2]
[360898015,1747128634802,-400.0,0.00011986,2]
[360898016,1747128634812,-400.0,0.00011986,2]
[360898017,1747128634821,-500.0,0.00011986,2]
[360898018,1747128634829,-400.0,0.00011986,2]
[360898019,1747128634839,-400.0,0.00011986,2]
[360898020,1747128634848,-400.0,0.00011986,2]
[360898021,1747128634857,-400.0,0.00011986,2]
[360898022,1747128634866,-400.0,0.00011986,2]
[360898023,1747128634875,-400.0,0.00011986,2]
[360898024,1747128634884,-400.0,0.00011986,2]
[360898025,1747128634894,-400.0,0.00011986,2]
[360898026,1747128634903,-400.0,0.00011986,2]
[360898027,1747128634912,-400.0,0.00011986,2]
[360898028,1747128634921,-400.0,0.00011986,2]
[360898029,1747128634930,-400.0,0.00011986,2]
[360898030,1747128634940,-400.0,0.00011986,2]
[360898031,1747128634949,-585.94,0.00011986,2]
[360898032,1747128634958,-400.0,0.00011986,2]
[360898033,1747128634968,-488.63,0.00011986,2]
[360898034,1747128634978,-534.77,0.00011986,2]
[360898035,1747128634987,-400.0,0.00011986,2]
[360898036,1747128634996,-400.0,0.00011986,2]
[360898037,1747128635005,-400.0,0.00011986,2]
[360898038,1747128635014,-400.0,0.00011986,2]
[360898039,1747128635023,-400.0,0.00011986,2]
[360898040,1747128635033,-400.0,0.00011986,2]
[360898041,1747128635042,-400.0,0.00011986,2]
[360898042,1747128635051,-400.0,0.00011986,2]
[360898043,1747128635061,-400.0,0.00011986,2]
[360898044,1747128635071,-504.24675658,0.00011986,2]
[360898045,1747128635081,-400.0,0.00011986,2]
[360898046,1747128635092,-400.0,0.00011986,2]
[360898047,1747128635102,-447.64,0.00011986,2]
[360898048,1747128635112,-450.0,0.00011986,2]
[360898049,1747128635121,-400.0,0.00011986,2]
[360898050,1747128635130,-400.0,0.00011986,2]
[360898051,1747128635140,-361.18,0.00011986,2]
[360898052,1747128635149,-400.0,0.00011986,2]
[360898053,1747128635160,-400.0,0.00011986,2]
[360898054,1747128635171,-400.0,0.00011986,2]
[360898055,1747128635181,-400.0,0.00011986,2]
[360898056,1747128635191,-523.91,0.00011986,2]
[360898057,1747128635200,-400.0,0.00011986,2]
[360898058,1747128635209,-400.0,0.00011986,2]
[360898059,1747128635218,-400.0,0.00011986,2]
[360898060,1747128635229,-400.0,0.00011986,2]
[360898061,1747128635238,-621.93,0.00011986,2]
[360898062,1747128635248,-400.0,0.00011986,2]
[360898063,1747128635257,-485.27833714,0.00011986,2]
[360898064,1747128635266,-400.0,0.00011986,2]
[360898065,1747128635275,-304.8842277,0.00011986,2]
[360898066,1747128635284,-424.75,0.00011986,2]
[360898067,1747128635293,-400.0,0.00011986,2]
[360898068,1747128635302,-484.16248305,0.00011986,2]
[360898069,1747128635312,-426.1391187,0.00011986,2]
[360898070,1747128635321,-400.0,0.00011986,2]
[360898071,1747128635330,-400.0,0.00011986,2]
[360898072,1747128635339,-400.0,0.00011986,2]
[360898073,1747128635349,-400.0,0.00011986,2]
[360898074,1747128635359,-775.43,0.00011986,2]
[360898075,1747128635369,-447.45,0.00011986,2]
[360898076,1747128635378,-400.0,0.00011986,2]
[360898077,1747128635388,-400.0,0.00011986,2]
[360898078,1747128635397,-400.0,0.00011986,2]
[360898079,1747128635406,-400.0,0.00011986,2]
[360898080,1747128635416,-400.0,0.00011986,2]
[360898081,1747128635425,-400.0,0.00011986,2]
[360898082,1747128635435,-400.0,0.00011986,2]
[360898083,1747128635447,-721.2,0.00011986,2]
[360898084,1747128635457,-400.0,0.00011986,2]
[360898085,1747128635467,-400.0,0.00011986,2]
[360898086,1747128635476,-400.0,0.00011986,2]
[360898087,1747128635486,-400.0,0.00011986,2]
[360898088,1747128635496,-400.0,0.00011986,2]
[360898089,1747128635506,-400.0,0.00011986,2]
[360898090,1747128635516,-400.0,0.00011986,2]
[360898091,1747128635525,-400.0,0.00011986,2]
[360898092,1747128635535,-412.20652061,0.00011986,2]
[360898093,1747128635545,-400.0,0.00011986,2]
[360898094,1747128635555,-400.0,0.00011986,2]
[360898095,1747128635564,-400.0,0.00011986,2]
[360898096,1747128635574,-400.0,0.00011986,2]
[360898097,1747128635584,-53.44854938,0.00011986,2]
[360898098,1747128635615,-346.55145062,0.00011986,2]
[360898099,1747128635624,-214.93535679,0.00011986,2]
[360898100,1747128635635,-533.257335,0.00011986,2]
[360898103,1747128638252,-400.0,0.00011985,2]
[360898104,1747128638262,-400.0,0.00011985,2]
[360898105,1747128638272,-153.26448004,0.00011985,2]
[360898106,1747128638283,-246.73551996,0.00011985,2]
[360898107,1747128638293,-400.0,0.00011985,2]
[360898108,1747128638303,-1272.79417996,0.00011986,2]
[360898109,1747128638313,-400.0,0.00011986,2]
[360898110,1747128638322,-400.0,0.00011986,2]
[360898111,1747128638331,-400.0,0.00011986,2]
[360898112,1747128638340,-400.0,0.00011986,2]
[360898114,1747128638349,-234.1446315,0.00011986,2]
[360898116,1747128638372,-165.8553685,0.00011986,2]
[360898118,1747128638381,-400.0,0.00011986,2]
[360898120,1747128638390,-400.0,0.00011986,2]
[360898121,1747128638399,-400.0,0.00011986,2]
[360898124,1747128638408,-400.0,0.00011986,2]
[360898126,1747128638418,-400.0,0.00011986,2]
[360898127,1747128638427,-403.76731672,0.00011986,2]
[360898128,1747128638436,-400.0,0.00011986,2]
[360898129,1747128638445,-400.0,0.00011986,2]
[360898130,1747128638454,-400.0,0.00011986,2]
[360898131,1747128638464,-400.0,0.00011986,2]
[360898132,1747128638473,-400.0,0.00011986,2]
[360898133,1747128638483,-650.31,0.00011986,2]
[360898134,1747128638493,-400.0,0.00011986,2]
[360898136,1747128638503,-500.0,0.00011986,2]
[360898138,1747128638512,-400.0,0.00011986,2]
[360898139,1747128638521,-400.0,0.00011986,2]
[360898140,1747128638531,-400.0,0.00011986,2]
[360898141,1747128638540,-400.0,0.00011986,2]
[360898142,1747128638550,-410.88765945,0.00011986,2]
[360898143,1747128638559,-400.0,0.00011986,2]
[360898145,1747128638569,-400.0,0.00011986,2]
[360898147,1747128638578,-414.02129001,0.00011986,2]
[360898148,1747128638587,-400.0,0.00011986,2]
[360898149,1747128638597,-400.0,0.00011986,2]
[360898150,1747128638608,-400.0,0.00011986,2]
[360898151,1747128638617,-400.0,0.00011986,2]
[360898152,1747128638626,-400.0,0.00011986,2]
[360898153,1747128638636,-400.0,0.00011986,2]
[360898154,1747128638645,-400.0,0.00011986,2]
[360898155,1747128638656,-400.0,0.00011986,2]
[360898156,1747128638665,-400.0,0.00011986,2]
[360898157,1747128638674,-738.97,0.00011986,2]
[360898158,1747128638687,-400.0,0.00011986,2]
[360898159,1747128638698,-400.0,0.00011986,2]
[360898160,1747128638707,-400.0,0.00011986,2]
[360898161,1747128638717,-2034.97,0.00011986,2]
[360898162,1747128638728,-972.08,0.00011986,2]
[360898163,1747128638738,-622.57,0.00011986,2]
[360898164,1747128638747,-400.0,0.00011986,2]
[360898165,1747128638757,-2941.38,0.00011986,2]
[360898166,1747128638766,-400.0,0.00011986,2]
[360898167,1747128638775,-400.0,0.00011986,2]
[360898168,1747128638786,-553.55,0.00011986,2]
[360898169,1747128638795,-400.0,0.00011986,2]
[360898170,1747128638804,-33402.31,0.00011986,2]
[360898171,1747128638814,-1038.0,0.00011986,2]
[360898172,1747128638823,-579.17,0.00011986,2]
[360898173,1747128638832,-400.0,0.00011986,2]
[360898174,1747128638842,-400.0,0.00011986,2]
[360898175,1747128638851,-451.98,0.00011986,2]
[360898176,1747128638860,-491.3,0.00011986,2]
[360898177,1747128638870,-400.0,0.00011986,2]
[360898178,1747128638879,-1011.37836532,0.00011986,2]
[360898179,1747128638891,-418.24163468,0.00011986,2]
[360898180,1747128638900,-400.0,0.00011986,2]
[360898181,1747128638910,-536.9,0.00011986,2]
[360898182,1747128638919,-872.87,0.00011986,2]
[360898183,1747128638929,-500.0,0.00011986,2]